fUSD/lending_fUSD_20250610
["ID","MTS","AMOUNT","RATE_DAILY","PERIOD"]
[365197712,1749528651787,-340.5793627,0.00017753,2]
[365197713,1749528651796,-916.68,0.00017753,2]
[365197714,1749528651806,-490.0,0.00017753,2]
[365197715,1749528651816,-490.0,0.00017753,2]
[365197716,1749528651825,-1238.04,0.00017753,2]
[365197717,1749528651835,-490.0,0.00017753,2]
[365197718,1749528651844,-1206.41,0.00017753,2]
[365197719,1749528651854,-490.0,0.00017753,2]
[365197720,1749528651864,-504.91,0.00017753,2]
[365197721,1749528651874,-490.0,0.00017753,2]
[365197722,1749528651884,-490.0,0.00017753,2]
[365197723,1749528651894,-490.0,0.00017753,2]
[365197724,1749528651903,-627.69,0.00017753,2]
[365197725,1749528651913,-329.0,0.00017756,4]
[365197726,1749528651922,-600.0,0.00017781,4]
[365197727,1749528651932,-600.0,0.00017781,4]
[365197728,1749528651942,-262.96,0.00017801,2]
[365197729,1749528651951,-500.0,0.00017808,2]
[365197730,1749528651961,-500.0,0.00017808,2]
[365197731,1749528651970,-500.0,0.00017808,2]
[365197732,1749528651979,-500.0,0.00017808,2]
[365197733,1749528651989,-500.0,0.00017808,2]
[365197734,1749528651999,-500.0,0.00017808,2]
[365197735,1749528652008,-500.0,0.00017808,2]
[365197736,1749528652018,-500.0,0.00017808,2]
[365197737,1749528652260,-500.0,0.00017808,2]
[365197738,1749528652270,-500.0,0.00017808,2]
[365197739,1749528652280,-500.0,0.00017808,2]
[365197740,1749528652290,-500.0,0.00017808,2]
[365197741,1749528652300,-1000.0,0.00017826,2]
[365197742,1749528652309,-387.0,0.00017856,2]
[365197743,1749528652320,-259.56702938,0.00017865,2]
[365197744,1749528652330,-1500.0,0.00017884,2]
[365197745,1749528652340,-1500.0,0.000179,6]
[365197746,1749528652350,-729.28936673,0.000179,2]
[365197747,1749528652360,-729.28936661,0.000179,2]
[365197748,1749528652369,-729.28936661,0.000179,2]
[365197749,1749528652379,-729.28936661,0.000179,2]
[365197750,1749528652389,-729.28936661,0.000179,2]
[365197751,1749528652398,-729.28936661,0.000179,2]
[365197752,1749528652408,-729.28936661,0.000179,2]
[365197753,1749528652418,-729.28936661,0.000179,2]
[365197754,1749528652428,-729.28936661,0.000179,2]
[365197755,1749528652438,-729.28936661,0.000179,2]
[365197756,1749528652447,-729.28936661,0.000179,2]
[365197757,1749528652457,-729.28936661,0.000179,2]
[365197758,1749528652466,-729.28936661,0.000179,2]
[365197759,1749528652475,-200.0,0.0001791,4]
[365197760,1749528652485,-329.55616241,0.0001791,4]
[365197761,1749528652494,-500.0,0.00017916,2]
[365197762,1749528652504,-300.0,0.00017916,2]
[365197763,1749528652514,-490.0,0.00017917,2]
[365197764,1749528652523,-465.63919781,0.00017917,2]
[365197765,1749528652533,-528.29982656,0.00017917,2]
[365197766,1749528652542,-490.33,0.00017917,2]
[365197767,1749528652552,-490.0,0.00017917,2]
[365197768,1749528652561,-490.0,0.00017917,2]
[365197769,1749528652571,-713.72,0.00017917,2]
[365197770,1749528652580,-896.72,0.00017917,2]
[365197771,1749528652590,-490.0,0.00017917,2]
[365197772,1749528652599,-490.0,0.00017917,2]
[365197773,1749528652608,-510.54,0.00017917,2]
[365197774,1749528652617,-490.0,0.00017917,2]
[365197775,1749528652628,-490.0,0.00017917,2]
[365197776,1749528652637,-490.0,0.00017917,2]
[365197777,1749528652646,-490.0,0.00017917,2]
[365197778,1749528652655,-490.0,0.00017917,2]
[365197779,1749528652666,-490.0,0.00017917,2]
[365197780,1749528652675,-586.76,0.00017917,2]
[365197781,1749528652688,-1928.5,0.00017917,2]
[365197782,1749528652699,-490.0,0.00017917,2]
[365197783,1749528652709,-490.0,0.00017917,2]
[365197784,1749528652719,-490.0,0.00017917,2]
[365197785,1749528652729,-490.0,0.00017917,2]
[365197786,1749528652739,-500.42,0.00017917,2]
[365197787,1749528652749,-602.11,0.00017917,2]
[365197788,1749528652759,-225.17179705,0.00017917,2]
[365197789,1749528652770,-490.0,0.00017917,2]
[365197790,1749528652780,-534.62,0.00017917,2]
[365197791,1749528652790,-490.0,0.00017917,2]
[365197792,1749528652800,-490.0,0.00017917,2]
[365197793,1749528652810,-490.0,0.00017917,2]
[365197794,1749528652820,-490.0,0.00017917,2]
[365197795,1749528652830,-490.0,0.00017917,2]
[365197796,1749528652839,-490.0,0.00017917,2]
[365197797,1749528652849,-490.0,0.00017917,2]
[365197798,1749528652859,-20654.85,0.00017917,2]
[365197799,1749528652869,-490.0,0.00017917,2]
[365197800,1749528652878,-916.68,0.00017917,2]
[365197801,1749528652888,-490.0,0.00017917,2]
[365197802,1749528652898,-490.0,0.00017917,2]
[365197803,1749528652908,-1238.04,0.00017917,2]
[365197804,1749528652918,-490.0,0.00017917,2]
[365197805,1749528652928,-1206.41,0.00017917,2]
[365197806,1749528652938,-490.0,0.00017917,2]
[365197807,1749528652947,-504.91,0.00017917,2]
[365197808,1749528652958,-490.0,0.00017917,2]
[365197809,1749528652967,-490.0,0.00017917,2]
[365197810,1749528652977,-490.0,0.00017917,2]
[365197811,1749528652986,-627.69,0.00017917,2]
[365197812,1749528652995,-1000.0,0.00017921,2]
[365197813,1749528653005,-1000.0,0.00017921,2]
[365197814,1749528653015,-269.0,0.00017947,2]
[365197815,1749528653024,-1078.0,0.00017951,2]
[365197816,1749528653034,-500.0,0.00017967,2]
[365197817,1749528653044,-200.0,0.00017967,2]
[365197818,1749528653054,-500.0,0.00017973,2]
[365197819,1749528653063,-501.64674611,0.00017973,2]
[365197820,1749528653073,-500.0,0.00017973,2]
[365197821,1749528653083,-500.0,0.00017973,2]
[365197822,1749528653093,-500.0,0.00017973,2]
[365197823,1749528653102,-500.0,0.00017973,2]
[365197824,1749528653112,-500.0,0.00017973,2]
[365197825,1749528653121,-548.25999105,0.00017973,2]
[365197826,1749528653131,-500.0,0.00017973,2]
[365197827,1749528653141,-500.0,0.00017973,2]
[365197828,1749528653151,-500.0,0.00017973,2]
[365197829,1749528653161,-500.0,0.00017973,2]
[365197830,1749528653171,-500.0,0.00017973,2]
[365197831,1749528653181,-500.0,0.00017973,2]
[365197832,1749528653191,-500.0,0.00017973,2]
[365197833,1749528653201,-500.0,0.00017973,2]
[365197834,1749528653211,-500.0,0.00017973,2]
[365197835,1749528653220,-500.0,0.00017973,2]
[365197836,1749528653230,-500.0,0.00017973,2]
[365197837,1749528653240,-500.0,0.00017973,2]
[365197838,1749528653251,-500.0,0.00017973,2]
[365197839,1749528653261,-500.43656164,0.00017973,2]
[365197840,1749528653271,-500.0,0.00017973,2]
[365197841,1749528653281,-500.64086781,0.00017973,2]
[365197842,1749528653291,-212.56746098,0.00017973,2]
[365197843,1749528653301,-500.0,0.00017973,2]
[365197844,1749528653311,-272.59187921,0.00017973,2]
[365197845,1749528653321,-500.0,0.00017973,2]
[365197846,1749528653331,-500.0,0.00017973,2]
[365197847,1749528653340,-332.96240428,0.00017973,2]
[365197848,1749528653350,-300.0,0.00017989,2]
[365197849,1749528653359,-500.0,0.00017989,2]
[365197850,1749528653369,-721.19,0.00017989,2]
[365197851,1749528653379,-500.0,0.00017989,2]
[365197852,1749528653388,-19837.96124872,0.0001799,2]
[365197853,1749528653512,201.0,0.00015509,2]
[365197854,1749528656230,-1149.4,0.0001799,2]
[365197855,1749528656265,-745.4721,0.0001799,2]
[365197856,1749528677486,500.0,0.00014964,2]
[365197857,1749528677666,500.0,0.00014964,2]
[365197858,1749528851194,206.99,0.00013699,2]
[365197859,1749528859013,797.27,0.00014167,2]
[365197860,1749528955292,1000.0,0.00015873,2]
[365197861,1749528989877,1231.97,0.00015817,2]
[365197862,1749529070713,150.0,0.00015829,2]
[365197863,1749529173000,373.73,0.00015865,2]
[365197864,1749529330262,1406.0,0.00024649,120]
[365197865,1749529370667,500.0,0.00014964,2]
[365197866,1749529371636,500.0,0.00014964,2]
[365197867,1749529376111,626.27,0.00015729,2]
[365197868,1749529376133,2000.0,0.00015729,2]
[365197869,1749529376154,2000.0,0.00015729,2]
[365197870,1749529376180,19273.73,0.00015729,2]
[365197871,1749529409324,173.76,0.00012565,2]
[365197875,1749529441949,1333.0,0.00024008,120]
[365197876,1749529456292,2505.74,0.00015722,2]
[365197878,1749529537292,12761.53778895,9e-05,2]
[365197882,1749529631480,5893.26833644,0.00015,2]
[365197883,1749529634829,14291.89795343,0.00015,2]
[365197885,1749529640835,3129.0463448,0.0001305,2]
[365197888,1749529643804,163.84,0.00015813,2]
[365197891,1749529659377,300.0,0.000169,6]
[365197895,1749529677109,3416.43300377,0.00015,2]
[365197898,1749529692369,310.0,0.00015205,2]
[365197899,1749529692628,310.0,0.00015658,2]
[365197900,1749529693916,190.78624467,0.0001439,2]
[365197901,1749529693941,9524.17144408,0.0001439,2]
[365197909,1749529715288,251.56963318,0.00014,30]
[365197929,1749529771243,150.0,0.0001573,7]
[365197930,1749529778468,180.09153605,0.00015392,2]
[365197946,1749529831413,-310.0,0.0001611,3]
[365197947,1749529831423,-250.0,0.00016157,2]
[365197948,1749529831433,-200.0,0.00016204,2]
[365197949,1749529831442,-71.84756269,0.00016331,2]
[365197950,1749529831469,-1650.00000001,0.00016331,2]
[365197951,1749529831481,-778.1524373,0.00016331,2]
[365197952,1749529831490,-1257.3975627,0.00016333,2]
[365197953,1749529831580,-105.2624373,0.00016333,2]
[365197954,1749529831590,-1200.0,0.00016337,2]
[365197955,1749529831599,-2754.88112866,0.00016338,2]
[365198305,1749529837542,-3437.07377802,0.00016338,2]
[365198306,1749529837552,-2500.0,0.00016338,2]
[365198307,1749529837561,-797.27,0.00016431,2]
[365198308,1749529837571,-284.61649266,0.00016437,2]
[365198309,1749529837582,-328.61395912,0.00016437,2]
[365198310,1749529837591,-340.39209148,0.00016437,2]
[365198311,1749529837709,-104.05051728,0.00016437,2]
[365198312,1749529837720,-352.89947876,0.00016437,2]
[365198529,1749529841210,-197.10052124,0.00016437,2]
[365198530,1749529841220,-425.27738027,0.00016438,2]
[365198531,1749529841233,-480.0,0.00016438,2]
[365198532,1749529841245,-480.0,0.00016438,2]
[365198533,1749529841256,-490.0,0.00016438,2]
[365198534,1749529841267,-490.0,0.00016438,2]
[365198535,1749529841277,-175.60734849,0.00016438,2]
[365198536,1749529841298,-316.06720646,0.00016438,2]
[365198537,1749529841309,-490.0,0.00016438,2]
[365198538,1749529841319,-490.0,0.00016438,2]
[365198539,1749529841330,-490.0,0.00016438,2]
[365198540,1749529841340,-490.0,0.00016438,2]
[365198541,1749529841351,-490.0,0.00016438,2]
[365198542,1749529841361,-490.0,0.00016438,2]
[365198543,1749529841371,-490.0,0.00016438,2]
[365198544,1749529841382,-490.0,0.00016438,2]
[365198545,1749529841392,-490.0,0.00016438,2]
[365198546,1749529841403,-490.0,0.00016438,2]
[365198547,1749529841414,-170.48975991,0.00016438,2]
[365198548,1749529841424,-490.0,0.00016438,2]
[365198549,1749529841435,-613.81736375,0.00016438,2]
[365198550,1749529841446,-406.71079065,0.00016438,2]
[365198551,1749529841456,-490.0,0.00016438,2]
[365198552,1749529841467,-490.0,0.00016438,2]
[365198553,1749529841477,-421.84623512,0.00016438,2]
[365198554,1749529841487,-184.42913246,0.00016438,2]
[365198555,1749529841498,-518.1768678,0.00016438,2]
[365198556,1749529841508,-490.0,0.00016438,2]
[365198557,1749529841519,-509.48231875,0.00016438,2]
[365198558,1749529841530,-490.0,0.00016438,2]
[365198559,1749529841540,-490.0,0.00016438,2]
[365198560,1749529841551,-306.69028295,0.00016438,2]
[365198561,1749529841561,-490.0,0.00016438,2]
[365198562,1749529841571,-490.0,0.00016438,2]
[365198563,1749529841582,-480.0,0.00016438,2]
[365198564,1749529841592,-206.96240907,0.00016438,2]
[365198565,1749529841602,-490.0,0.00016438,2]
[365198566,1749529841612,-490.0,0.00016438,2]
[365198567,1749529841622,-490.0,0.00016438,2]
[365198568,1749529841632,-490.0,0.00016438,2]
[365198569,1749529841643,-490.0,0.00016438,2]
[365198570,1749529841653,-490.0,0.00016438,2]
[365198571,1749529841664,-490.0,0.00016438,2]
[365198572,1749529841674,-490.0,0.00016438,2]
[365198573,1749529841684,-490.0,0.00016438,2]
[365198574,1749529841695,-445.66832507,0.00016438,2]
[365198575,1749529841705,-490.0,0.00016438,2]
[365198576,1749529841715,-490.0,0.00016438,2]
[365198577,1749529841726,-490.0,0.00016438,2]
[365198578,1749529841736,-490.0,0.00016438,2]
[365198579,1749529841747,-490.0,0.00016438,2]
[365198580,1749529841757,-490.0,0.00016438,2]
[365198581,1749529841766,-490.0,0.00016438,2]
[365198582,1749529841775,-490.0,0.00016438,2]
[365198583,1749529841784,-274.64918471,0.00016438,2]
[365198584,1749529841794,-490.0,0.00016438,2]
[365198585,1749529841803,-490.0,0.00016438,2]
[365198586,1749529841812,-282.40397156,0.00016438,2]
[365198587,1749529841822,-490.0,0.00016438,2]
[365198588,1749529841831,-490.0,0.00016438,2]
[365198589,1749529841840,-542.12574744,0.00016438,2]
[365198590,1749529841850,-629.26633043,0.00016438,2]
[365198591,1749529841860,-480.0,0.00016438,2]
[365198592,1749529841870,-490.0,0.00016438,2]
[365198593,1749529841880,-490.0,0.00016438,2]
[365198594,1749529841890,-490.0,0.00016438,2]
[365198595,1749529841900,-490.0,0.00016438,2]
[365198596,1749529841910,-490.0,0.00016438,2]
[365198597,1749529841920,-594.6863739,0.00016438,2]
[365198598,1749529841931,-490.0,0.00016438,2]
[365198599,1749529841942,-490.0,0.00016438,2]
[365198600,1749529841953,-490.0,0.00016438,2]
[365198601,1749529841963,-490.0,0.00016438,2]
[365198602,1749529841974,-490.0,0.00016438,2]
[365198603,1749529841984,-490.0,0.00016438,2]
[365198604,1749529841994,-490.0,0.00016438,2]
[365198605,1749529842005,-490.0,0.00016438,2]
[365198606,1749529842015,-469.62155339,0.00016438,2]
[365198607,1749529842025,-490.0,0.00016438,2]
[365198608,1749529842036,-490.0,0.00016438,2]
[365198609,1749529842047,-490.0,0.00016438,2]
[365198610,1749529842059,-490.0,0.00016438,2]
[365198611,1749529842069,-490.0,0.00016438,2]
[365198612,1749529842080,-490.0,0.00016438,2]
[365198613,1749529842091,-490.0,0.00016438,2]
[365198614,1749529842101,-490.0,0.00016438,2]
[365198615,1749529842111,-490.0,0.00016438,2]
[365198616,1749529842123,-403.72,0.00016438,2]
[365198617,1749529842134,-490.0,0.00016438,2]
[365198618,1749529842144,-448.68678124,0.00016438,2]
[365198619,1749529842154,-410.21191403,0.00016438,2]
[365198620,1749529842165,-490.0,0.00016438,2]
[365198621,1749529842175,-490.0,0.00016438,2]
[365198622,1749529842185,-490.0,0.00016438,2]
[365198623,1749529842195,-490.0,0.00016438,2]
[365198624,1749529842206,-490.0,0.00016438,2]
[365198625,1749529842216,-574.12731398,0.00016438,2]
[365198626,1749529842227,-490.0,0.00016438,2]
[365198627,1749529842237,-490.0,0.00016438,2]
[365198628,1749529842248,-517.01600954,0.00016438,2]
[365198629,1749529842258,-490.0,0.00016438,2]
[365198630,1749529842268,-490.0,0.00016438,2]
[365198631,1749529842280,-490.0,0.00016438,2]
[365198632,1749529842290,-490.0,0.00016438,2]
[365198633,1749529842300,-490.0,0.00016438,2]
[365198634,1749529842312,-490.0,0.00016438,2]
[365198635,1749529842322,-490.0,0.00016438,2]
[365198636,1749529842332,-490.0,0.00016438,2]
[365198637,1749529842342,-490.0,0.00016438,2]
[365198638,1749529842353,-490.0,0.00016438,2]
[365198639,1749529842364,-490.0,0.00016438,2]
[365198640,1749529842375,-490.0,0.00016438,2]
[365198641,1749529842386,-490.0,0.00016438,2]
[365198642,1749529842396,-480.0,0.00016438,2]
[365198643,1749529842406,-194.78,0.00016438,2]
[365198644,1749529842417,-589.76396296,0.00016438,2]
[365198645,1749529842427,-490.0,0.00016438,2]
[365198646,1749529842834,-490.0,0.00016438,2]
[365198647,1749529842845,-490.0,0.00016438,2]
[365198648,1749529842855,-490.0,0.00016438,2]
[365198649,1749529842865,-446.11578756,0.00016438,2]
[365198650,1749529842875,-490.0,0.00016438,2]
[365198651,1749529842884,-490.0,0.00016438,2]
[365198652,1749529842893,-490.0,0.00016438,2]
[365198653,1749529842902,-513.32878627,0.00016438,2]
[365198654,1749529842911,-490.0,0.00016438,2]
[365198655,1749529842921,-490.0,0.00016438,2]
[365198656,1749529842930,-490.0,0.00016438,2]
[365198657,1749529842939,-490.0,0.00016438,2]
[365198658,1749529842949,-490.0,0.00016438,2]
[365198660,1749529842959,-490.0,0.00016438,2]
[365198662,1749529842968,-480.0,0.00016438,2]
[365198664,1749529842977,-490.0,0.00016438,2]
[365198665,1749529842986,-490.0,0.00016438,2]
[365198666,1749529842996,-490.0,0.00016438,2]
[365198667,1749529843005,-490.0,0.00016438,2]
[365198668,1749529843015,-490.0,0.00016438,2]
[365198669,1749529843024,-490.0,0.00016438,2]
[365198670,1749529843034,-490.0,0.00016438,2]
[365198671,1749529843043,-490.0,0.00016438,2]
[365198672,1749529843056,-490.0,0.00016438,2]
[365198673,1749529843065,-490.0,0.00016438,2]
[365198674,1749529843075,-490.0,0.00016438,2]
[365198675,1749529843084,-490.0,0.00016438,2]
[365198676,1749529843094,-152.46668822,0.00016438,2]
[365198677,1749529843103,-490.0,0.00016438,2]
[365198678,1749529843113,-490.0,0.00016438,2]
[365198679,1749529843123,-490.0,0.00016438,2]
[365198680,1749529843134,-490.0,0.00016438,2]
[365198681,1749529843144,-490.0,0.00016438,2]
[365198682,1749529843154,-490.0,0.00016438,2]
[365198683,1749529843164,-490.0,0.00016438,2]
[365198684,1749529843177,-490.0,0.00016438,2]
[365198685,1749529843187,-490.0,0.00016438,2]
[365198686,1749529843196,-490.0,0.00016438,2]
[365198687,1749529843207,-490.0,0.00016438,2]
[365198688,1749529843216,-490.0,0.00016438,2]
[365198689,1749529843226,-490.0,0.00016438,2]
[365198690,1749529843235,-490.0,0.00016438,2]
[365198691,1749529843246,-490.0,0.00016438,2]
[365198692,1749529843256,-490.0,0.00016438,2]
[365198693,1749529843266,-490.0,0.00016438,2]
[365198694,1749529843275,-490.0,0.00016438,2]
[365198695,1749529843284,-490.0,0.00016438,2]
[365198696,1749529843294,-490.0,0.00016438,2]
[365198697,1749529843303,-490.0,0.00016438,2]
[365198698,1749529843313,-219.91733491,0.00016438,2]
[365198699,1749529843322,-490.0,0.00016438,2]
[365198700,1749529843331,-490.0,0.00016438,2]
[365198701,1749529843340,-653.39,0.00016438,2]
[365198702,1749529843350,-490.0,0.00016438,2]
[365198703,1749529843359,-490.0,0.00016438,2]
[365198704,1749529843369,-490.0,0.00016438,2]
[365198705,1749529843379,-191.67339561,0.00016438,2]
[365198706,1749529843388,-490.0,0.00016438,2]
[365198707,1749529843398,-490.0,0.00016438,2]
[365198708,1749529843407,-490.0,0.00016438,2]
[365198709,1749529843416,-582.04257405,0.00016438,2]
[365198710,1749529843426,-490.0,0.00016438,2]
[365198711,1749529843435,-7548.605672,0.00016438,2]
[365198712,1749529843444,-490.0,0.00016438,2]
[365198713,1749529843454,-490.0,0.00016438,2]
[365198714,1749529843464,-490.0,0.00016438,2]
[365198715,1749529843474,-490.0,0.00016438,2]
[365198716,1749529843484,-490.0,0.00016438,2]
[365198717,1749529843493,-490.0,0.00016438,2]
[365198718,1749529843503,-490.0,0.00016438,2]
[365198719,1749529843512,-490.0,0.00016438,2]
[365198720,1749529843522,-490.0,0.00016438,2]
[365198721,1749529843531,-490.0,0.00016438,2]
[365198722,1749529843541,-358.27781149,0.00016438,2]
[365198723,1749529843551,-490.0,0.00016438,2]
[365198724,1749529843560,-490.0,0.00016438,2]
[365198725,1749529843570,-490.0,0.00016438,2]
[365198726,1749529843580,-490.0,0.00016438,2]
[365198727,1749529843589,-490.0,0.00016438,2]
[365198728,1749529843599,-490.0,0.00016438,2]
[365198729,1749529843608,-490.0,0.00016438,2]
[365198730,1749529843618,-490.0,0.00016438,2]
[365198731,1749529843627,-340.06278015,0.00016438,2]
[365198732,1749529843637,-490.0,0.00016438,2]
[365198733,1749529843646,-490.0,0.00016438,2]
[365198734,1749529843655,-490.0,0.00016438,2]
[365198735,1749529843665,-490.0,0.00016438,2]
[365198736,1749529843675,-461.09780102,0.00016438,2]
[365198737,1749529843684,-490.0,0.00016438,2]
[365198738,1749529843693,-793.71,0.00016438,2]
[365198739,1749529843703,-490.0,0.00016438,2]
[365198740,1749529843714,-490.0,0.00016438,2]
[365198741,1749529843723,-612.49,0.00016438,2]
[365198742,1749529843732,-490.0,0.00016438,2]
[365198743,1749529843742,-490.0,0.00016438,2]
[365198744,1749529843752,-490.0,0.00016438,2]
[365198745,1749529843762,-490.0,0.00016438,2]
[365198746,1749529843771,-490.0,0.00016438,2]
[365198747,1749529843781,-490.0,0.00016438,2]
[365198748,1749529843791,-198.1738388,0.00016438,2]
[365198749,1749529843800,-536.91,0.00016438,2]
[365198750,1749529843810,-490.0,0.00016438,2]
[365198751,1749529843819,-490.0,0.00016438,2]
[365198752,1749529843829,-490.0,0.00016438,2]
[365198753,1749529843839,-490.0,0.00016438,2]
[365198754,1749529843848,-490.0,0.00016438,2]
[365198755,1749529843857,-490.0,0.00016438,2]
[365198756,1749529843867,-490.0,0.00016438,2]
[365198757,1749529843876,-490.0,0.00016438,2]
[365198758,1749529843886,-332.19522075,0.00016438,2]
[365198759,1749529843895,-490.0,0.00016438,2]
[365198760,1749529843904,-490.0,0.00016438,2]
[365198761,1749529843914,-490.0,0.00016438,2]
[365198762,1749529843924,-290.33489719,0.00016438,2]
[365198763,1749529843934,-490.0,0.00016438,2]
[365198764,1749529843944,-490.0,0.00016438,2]
[365198765,1749529843954,-490.0,0.00016438,2]
[365198766,1749529843965,-490.0,0.00016438,2]
[365198767,1749529843974,-490.0,0.00016438,2]
[365198768,1749529843984,-512.55,0.00016438,2]
[365198769,1749529843993,-490.0,0.00016438,2]
[365198770,1749529844003,-490.0,0.00016438,2]
[365198771,1749529844014,-490.0,0.00016438,2]
[365198772,1749529844023,-614.27860205,0.00016438,2]
[365198773,1749529844036,-490.0,0.00016438,2]
[365198774,1749529844048,-490.0,0.00016438,2]
[365198775,1749529844059,-490.0,0.00016438,2]
[365198776,1749529844069,-480.0,0.00016438,2]
[365198777,1749529844080,-490.0,0.00016438,2]
[365198778,1749529844092,-490.0,0.00016438,2]
[365198779,1749529844101,-490.0,0.00016438,2]
[365198780,1749529844111,-490.0,0.00016438,2]
[365198781,1749529844120,-190.88031918,0.00016438,2]
[365198782,1749529844131,-490.0,0.00016438,2]
[365198783,1749529844141,-646.4,0.00016438,2]
[365198784,1749529844150,-490.0,0.00016438,2]
[365198785,1749529844160,-1638.12,0.00016438,2]
[365198786,1749529844169,-490.0,0.00016438,2]
[365198787,1749529844178,-490.0,0.00016438,2]
[365198788,1749529844187,-414.25464342,0.00016438,2]
[365198789,1749529844196,-490.0,0.00016438,2]
[365198790,1749529844207,-490.0,0.00016438,2]
[365198791,1749529844217,-490.0,0.00016438,2]
[365198792,1749529844227,-490.0,0.00016438,2]
[365198793,1749529844236,-490.0,0.00016438,2]
[365198794,1749529844246,-490.0,0.00016438,2]
[365198795,1749529844255,-490.0,0.00016438,2]
[365198796,1749529844265,-466.68945178,0.00016438,2]
[365198797,1749529844274,-490.0,0.00016438,2]
[365198798,1749529844285,-490.0,0.00016438,2]
[365198799,1749529844294,-490.0,0.00016438,2]
[365198800,1749529844304,-490.0,0.00016438,2]
[365198801,1749529844314,-490.0,0.00016438,2]
[365198802,1749529844324,-490.0,0.00016438,2]
[365198803,1749529844334,-509.97071989,0.00016438,2]
[365198804,1749529844345,-490.0,0.00016438,2]
[365198805,1749529844355,-490.0,0.00016438,2]
[365198806,1749529844365,-490.0,0.00016438,2]
[365198807,1749529844375,-490.0,0.00016438,2]
[365198808,1749529844385,-490.0,0.00016438,2]
[365198809,1749529844395,-490.0,0.00016438,2]
[365198810,1749529844405,-352.76454895,0.00016438,2]
[365198811,1749529844415,-391.652639,0.00016438,2]
[365198812,1749529844424,-490.0,0.00016438,2]
[365198813,1749529844434,-490.0,0.00016438,2]
[365198814,1749529844443,-755.9,0.00016438,2]
[365198815,1749529844453,-490.0,0.00016438,2]
[365198816,1749529844464,-490.0,0.00016438,2]
[365198817,1749529844474,-490.0,0.00016438,2]
[365198818,1749529844483,-518.52050256,0.00016438,2]
[365198819,1749529844493,-490.0,0.00016438,2]
[365198820,1749529844503,-490.0,0.00016438,2]
[365198821,1749529844512,-455.74491184,0.00016438,2]
[365198822,1749529844522,-490.0,0.00016438,2]
[365198823,1749529844532,-490.0,0.00016438,2]
[365198824,1749529844542,-490.0,0.00016438,2]
[365198825,1749529844552,-490.0,0.00016438,2]
[365198826,1749529844562,-490.0,0.00016438,2]
[365198827,1749529844572,-490.0,0.00016438,2]
[365198828,1749529844582,-490.0,0.00016438,2]
[365198829,1749529844591,-490.0,0.00016438,2]
[365198830,1749529844602,-490.0,0.00016438,2]
[365198831,1749529844611,-490.0,0.00016438,2]
[365198832,1749529844620,-490.0,0.00016438,2]
[365198833,1749529844631,-490.0,0.00016438,2]
[365198834,1749529844640,-490.0,0.00016438,2]
[365198835,1749529844650,-490.0,0.00016438,2]
[365198836,1749529844660,-490.0,0.00016438,2]
[365198837,1749529844669,-490.0,0.00016438,2]